Cogmind - Beta 13 @@@ ROGUE MODE // 2024.06.04 @ 12:42:44 Player: wojo Result: Destroyed by G-34 Mercenary with Small Laser Performance ------------- Evolutions (0) 0 Regions Visited (1) 200 Robots Destroyed (18) 90 Value Destroyed (584) 584 Prototype IDs (0) 0 Alien Tech Used (0) 0 Bonus (0) 0 TOTAL SCORE: 874 Bonus ------- None Cogmind --------- Core Integrity 0/250 Matter 295/300 Energy 160/160 System Corruption 0% Temperature Cool (6) Movement Treading (160) Location -10/Materials Parts ------- > --- POWER (1) -------- Light Nuclear Core > --- PROPULSION (2) --- Light Treads Light Treads > --- UTILITY (2) ------ Improved Terrain Scanner Terrain Scan Processor > --- WEAPON (2) ------- Small Laser > --- INVENTORY (5) ---- Improved Targeting Computer Improved Targeting Computer Improved Targeting Computer Improved Targeting Computer Peak State ------------ > --- POWER ------------ Light Nuclear Core > --- PROPULSION ------- Light Treads Light Treads > --- UTILITY ---------- Improved Terrain Scanner Terrain Scan Processor > --- WEAPON ----------- Light Cannon Grenade Launcher > --- INVENTORY -------- Light Ion Engine Light Ion Engine Heat Sink Transport Network Coupler [Rating: 12] Favorites ----------- Power Light Nuclear Core Engine Light Ion Engine Power Core Light Nuclear Core Propulsion Light Treads Treads Light Treads Utility Improved Terrain Scanner Device Improved Terrain Scanner Storage Small Storage Unit Processor Terrain Scan Processor Weapon Small Laser Energy Gun Small Laser Ballistic Gun Light Assault Rifle Ballistic Cannon Light Cannon Launcher Grenade Launcher Special Melee Weapon Datajack Build | -11 -10 ------- Run | Yrd Mat Slots Evolved . | . . Power . | . . Propulsion . | . . Utility . | . . Weapon . | . . Parts Attached 19 | 7 12 Power 3 | 1 2 Engine 1 | 1 . Core 2 | . 2 Reactor . | . . Propulsion 6 | 2 4 Treads 6 | 2 4 Leg . | . . Wheel . | . . Hover . | . . Flight . | . . Utility 3 | 2 1 Device 1 | 1 . Storage 1 | 1 . Processor 1 | . 1 Hackware . | . . Protection . | . . Artifact . | . . Weapon 7 | 2 5 Energy Gun 3 | 1 2 Energy Cannon . | . . Ballistic Gun 1 | 1 . Ballistic Cannon 1 | . 1 Launcher 1 | . 1 Special Weapon . | . . Impact Weapon . | . . Slashing Weapon . | . . Piercing Weapon . | . . Special Melee Weapon 1 | . 1 Unidentified Prototypes . | . . Parts Lost 8 | . 8 Power . | . . Propulsion 2 | . 2 Utility . | . . Weapon 6 | . 6 Highest Loss Streak 3 | . 3 To Critical Strikes . | . . Average Slot Usage (%) 96 | . 96 Engine 2 | . 2 Core 10 | . 10 Treads 26 | . 26 Device 14 | . 14 Storage 5 | . 5 Processor 8 | . 8 Energy Gun 10 | . 10 Ballistic Gun 2 | . 2 Ballistic Cannon 9 | . 9 Launcher 4 | . 4 Naked Turns . | . . Heaviest Build 17 | 11 17 Greatest Support 40 | 40 40 Greatest Overweight (x) 3 | 3 . Average Overweight (x) . | . . Largest Inventory Capacity 8 | 8 8 Average Capacity 6 | 7 6 Most Carried 5 | 2 5 Average Carried 3 | 1 4 Final Capacity 8 | 8 5 Final Carried 4 | 2 4 Class Distribution -------------------- 58% | Mutant 41% | Scavenger-Mutant Dominant Class ---------------- Mutant | -10/Materials Resources | -11 -10 ----------- Run | Yrd Mat Matter Collected 590 | 207 383 Remotely . | . . Salvage Created 508 | 13 495 Parts 34 | 3 31 Haulers Intercepted 2 | . 2 Recyclers Shooed . | . . Parts Field Recycled . | . . Retrieved Matter . | . . Parts Self-Destructed . | . . Prevented . | . . Kills | -11 -10 ------- Run | Yrd Mat Combat Hostiles Destroyed 14 | . 14 Guns 3 | . 3 Cannons 5 | . 5 AOE 6 | . 6 Classes Destroyed 4 | 1 3 Builder 1 | . 1 Tunneler 1 | 1 . Hauler 2 | . 2 Grunt 14 | . 14 Best Kill Streak 6 | 1 6 Combat Bots Only 6 | . 6 Max Kills in Single Turn 2 | 1 2 Gunslinging . | . . Exploded 2 | . 2 Melee . | . . Uniques/NPCs Destroyed . | . . Combat | -11 -10 -------- Run | Yrd Mat Hostile Shots Fired 121 | . 121 Missed 40 | . 40 Damage Taken 1190 | . 1190 Core 259 | . 259 Absorbed by Shields . | . . Regen/Repaired (Parts) 175 | . 175 Core Remaining (%) 100 | 100 . Volleys Fired 65 | 2 63 Largest 2 | 2 2 Hottest 75 | 60 75 Shots Fired 118 | 4 114 Gun 77 | 4 73 Cannon 32 | . 32 Launcher 9 | . 9 Special . | . . Kinetic 63 | 2 61 Thermal 46 | 2 44 Explosive 9 | . 9 Electromagnetic . | . . Robot Hit Streak 10 | 3 10 Robot Miss Streak 7 | 1 7 Penetration Max . | . . Secondary Targets 1 | . 1 Max Gunslinging Chain 1 | . 1 Shots Hit Robots 77 | 3 74 Core Hits 41 | 1 40 Critical Kills . | . . Critical Parts Destroyed . | . . Critical Strikes 1 | . 1 Blast 1 | . 1 Melee Attacks . | . . Impact . | . . Slashing . | . . Piercing . | . . Sneak Attacks . | . . Combat Hostiles . | . . Follow-up Attacks . | . . Damage Inflicted 1397 | 38 1359 Guns 515 | 38 477 Cannons 334 | . 334 Explosions 542 | . 542 Melee . | . . Ramming 6 | . 6 Kinetic 490 | 17 473 Thermal 359 | 21 338 Explosive 542 | . 542 Electromagnetic . | . . Impact . | . . Slashing . | . . Piercing . | . . Highest Corruption . | . . Average Corruption . | . . Corruption Purged . | . . Corruption Blocked . | . . Overload Shots . | . . Overflow Damage 54 | . 54 Projectiles . | . . Explosions 54 | . 54 Melee . | . . Knockbacks 3 | . 3 Impact . | . . Kinetic 3 | . 3 Secondary . | . . Self-Inflicted Damage 159 | . 159 Shots 5 | . 5 Rammed 4 | . 4 Targets Rammed 4 | . 4 Kicked . | . . Crushed . | . . Highest Temperature 321 | 20 321 Average Temperature 82 | 12 84 Received Heat Transfer 615 | . 615 Effects 2 | . 2 Energy Bleed 1 | . 1 Interference 1 | . 1 Siege Activations . | . . Robots Corrupted . | . . Combat Hostiles . | . . Parts Fried . | . . Impact Corruptions . | . . Robots Melted . | . . Combat Hostiles . | . . Parts Melted 1 | . 1 Heat Transferred 825 | 50 775 Parts Sabotaged . | . . Parts Stolen . | . . Parts Stripped . | . . Power Chain Reactions . | . . Alert | -11 -10 ------- Run | Yrd Mat Peak Influence 271 | 5 271 Initial 3 | . 3 Average 120 | 1 128 Maximum Alert Level 1 | . 1 Low Security (%) 78 | 100 77 Level 1 21 | . 22 Level 2 . | . . Level 3 . | . . Level 4 . | . . Level 5 . | . . High Security . | . . Max Security . | . . Squads Dispatched 4 | . 4 Investigation 3 | . 3 Extermination . | . . Reinforcement 1 | . 1 Assault . | . . Garrison . | . . Intercept . | . . Searches Triggered . | . . Construction Impeded . | . . Haulers Reinforced . | . . Active Scanning Responses . | . . Cargo Convoy Interrupts . | . . Stealth | -11 -10 --------- Run | Yrd Mat Distress Signals 1 | . 1 Communications Jammed . | . . Distress Signals . | . . Times Spotted 22 | . 22 Peak Tracking Total 6 | . 6 Tactical Retreats 1 | . 1 Traps | -11 -10 ------- Run | Yrd Mat Traps Triggered 2 | . 2 Indirectly . | . . Trap Hack Attempts . | . . Triggered . | . . Disarmed . | . . Reprogrammed . | . . Reused . | . . Traps Extracted . | . . Installed . | . . Triggered . | . . Machines | -11 -10 ---------- Run | Yrd Mat Machines Disabled 4 | . 4 Max in Single Turn 2 | . 2 Machines Repaired . | . . Machines Dismantled . | . . Machines Sabotaged . | . . Overloaded Fab Kills . | . . Hacking | -11 -10 --------- Run | Yrd Mat Machines Accessed 3 | . 3 Terminals 2 | . 2 Fabricators . | . . Repair Stations 1 | . 1 Recycling Units . | . . Scanalyzers . | . . Garrison Access . | . . Total Hacks 11 | . 11 Successful 8 | . 8 Failed 3 | . 3 Catastrophic 2 | . 2 Database Lockouts . | . . Manual . | . . Terminals 7 | . 7 Fabricators . | . . Repair Stations 4 | . 4 Recycling Units . | . . Scanalyzers . | . . Garrison Access . | . . Terminal Hacks 4 | . 4 Emergency Access Points 1 | . 1 Locate Traps 2 | . 2 Hauler Manifests 1 | . 1 Fabricator Hacks . | . . Repair Station Hacks 4 | . 4 Scan Component 2 | . 2 Repair 2 | . 2 Recycling Unit Hacks . | . . Scanalyzer . | . . Garrison Access Hacks . | . . Unauthorized Hacks . | . . Terminals . | . . Fabricators . | . . Repair Stations . | . . Recycling Units . | . . Scanalyzers . | . . Garrison Access . | . . Data Cores Recovered . | . . Used . | . . Hacking Detections 3 | . 3 Full Trace Events 2 | . 2 Feedback Events . | . . Feedback Blocked . | . . Robot Schematics Acquired . | . . Robots Built . | . . Authchips . | . . Time . | . . Total Robot Build Rating . | . . Part Schematics Acquired . | . . Parts Built . | . . Authchips . | . . Time . | . . Total Part Build Rating . | . . Parts Repaired 2 | . 2 Time 64 | . 64 Parts Recycled . | . . Recycled Matter . | . . Retrieved Matter . | . . Retrieved Components . | . . Parts Scanalyzed . | . . Part Schematics Acquired . | . . Parts Damaged . | . . Bothacking | -11 -10 ------------ Run | Yrd Mat Used RIF Installer . | . . Robots Hacked . | . . Non-combat . | . . Combat . | . . Robot Hacks Applied . | . . Relay Couplers Released . | . . Fabnet Peak Effective % . | . . Robots Rewired . | . . Allies Hacked . | . . Hacks Repelled . | . . Allies | -11 -10 -------- Run | Yrd Mat Total Allies . | . . Largest Group . | . . Highest-Rated Group . | . . Highest-Rated Ally . | . . Total Orders . | . . Ally Attacks . | . . Total Damage . | . . Kills . | . . Allies Corrupted . | . . Allies Melted . | . . Intel | -11 -10 ------- Run | Yrd Mat Robot Analysis Total . | . . Derelict Logs Recovered . | . . Drone Launches . | . . Drone Recoveries . | . . Exploration | -11 -10 ------------- Run | Yrd Mat Turns Passed 1151 | 75 1076 Spaces Moved 543 | 38 505 Core 18 | 18 . Treads 525 | 20 505 Legs . | . . Wheels . | . . Hover . | . . Flight . | . . Fastest Speed 50 | 50 160 Average Speed 159 | 152 160 Slowest Speed 200 | 200 160 Overloaded Moves . | . . Propulsion Burnouts . | . . Robots Hopped . | . . Cave-ins Triggered . | . . Exploration Rate (%) 35 | 4 66 Regions Visited 1 Branch Regions . Pre-discovered Areas . | . . Known Exits Taken . | . . Unknown Exits Taken 1 | 1 . Scrap Searched . | . . Spaces Dug . | . . Terrain Destroyed 58 | . 58 Melee . | . . Projectile . | . . AOE 58 | . 58 Terrain Rammed . | . . Walls Destroyed . | . . Machines Disabled . | . . Actions | -11 -10 --------- Run | Yrd Mat Total 709 | 48 661 Wait 64 | . 64 Move 542 | 37 505 Hop . | . . Pick Up 10 | 2 8 Fast Attach 15 | 7 8 Attach 3 | . 3 Detach . | . . Swap 1 | . 1 Drop 5 | . 5 Fire 65 | 2 63 Melee . | . . Ram . | . . Kick . | . . Crush 4 | . 4 Escape Stasis . | . . Rewire . | . . Trap . | . . Miscellaneous . | . . Route ------- -11/Scrapyard -10/Materials (discovered 2 exits: [*Mat] / [*Min]) History --------- Turn | Location | Event 6 | -11/Scrapyard | Discovered new exit (range 16) 76 | -11/Scrapyard | Entered Materials 329 | -10/Materials | Build established: Mutant 331 | -10/Materials | Lost 3 parts (1n2w) 381 | -10/Materials | Discovered new exit (range 10) 576 | -10/Materials | Derelicts attacked the area 600 | -10/Materials | Repaired Lgt. Nuclear Core 628 | -10/Materials | Repaired Lgt. Treads 640 | -10/Materials | Core integrity fell below 50% 696 | -10/Materials | Core integrity fell below 20% 813 | -10/Materials | Discovered new exit (range 12) 974 | -10/Materials | Build established: Scavenger-Mutant 1152 | -10/Materials | Destroyed by G-34 Mercenary with Small Laser Last Messages --------------- 00934_ A-02 Transporter Transport Network Coupler blasted off. 00939_ Acquired 2 matter. 00945_ T-07 Excavator is excavating. 00959_ Slammed into K-01 Serf. 01001_ A-02 Transporter destroyed. 01004_ Dropped Lgt. Ion Engine. 01006_ Acquired Datajack. 01007_ Acquired 4 matter. 01010_ Acquired 9 matter. 01037_ Triggered Alarm Trap. 01037_ An alarm sounds. 01037_ ALERT: Alarm triggered, dispatching investigation squad. 01063_ ALERT: Hostiles spotted, dispatching reinforcements to Terminal M004. 01064_ Acquired 2 matter. 01135_ Lgt. Cannon destroyed. 01148_ R-06 Scavenger collects Seismic Detector. 01149_ Datajack destroyed. Map ----- +----------------------------------------------------+ | ?# ### """ """ # ^ ### # ### | | ## ### """ """ # " " # ### ####+###### | | # ## """ """ + "Y" [%###+### #?# ###### | | # ## # """ ! ### ###### | | # + # T ###+#####? | | # ## # # ### | | # ## ### # ####### # #?? | | ### ####! ### ! ###?#??######## ### | | ??# #??###########?#!*! //#?##?#####??### #?? | | ??# #?#?##?##?#???##!! //#??############ "T" #?? | | ??# #??##???????##?########?## ## #?? | | ??# #?????###?#??#??########## ####+###### | | ??# ################# # """ """ # | | ??# % = + """ # """ """ + | | #?#######% # """ + """ """ # | | #######?#= # """ # ####+### ^ | | # * # + # #?# # " | | # """ # % ###### """ # #?#" | #? " | | #= """ # =% ##??## """ ###########?#T #? " | | # """ + =% ###### """ #?#???#?????#" #??? | | # # ##?### #???#######?# #??? | | ?######## % ##########+####### #######??? | | ?????### ^ ????????? | | ??#????# t r < ????????? | | ????#??# ????????? | | #??#??#### @####### "????????? | | #?######## """ #?##?## " "!" ?????????? | | #??# # &""" !###?#???? ????#????????? | | ???# %""" " "! #?#?###????????????????? | | ???# & != ! *#############??????????? | | ???# | = !*# ##?##????????? | | #??# ############## !# ###??????????? | | ???## ###?###??####?# + ##??? ???????? | | ????# ####?####?##?## = # #?##?????????? | | #???# #?#??##??#?#### % ##############? ? ?????? | | ????# #?#?######?### #?? ?? ? ?#?#? ????? | | ????# #?#?####?##### #? ??"? ?""" ?##??????? | | ????# #?#??######### gTg ##??"""?"""" ### ??#??? | | ???## ### #######?# = ##?"""" "??" ##??? ?? ? | | ???# # #?#######?#=%! ## ? ##?? ?? ? | | ???# # ## % #?##* "#??#+??###+##### ??#??? | | ???# # ?#/ ##?# #####?#### ? ???? | | ???# # ?## #### ##### #### ??? ?? | | ???# # ## #### ##### ##?# ?? ??? | | ??### ####?## /! + #### #?#######?? | | ????# ####### /! # #######+##+#### # #?? | | #??## ##?#### # #?#?# # # # ?? | | ??### #?#?### # ##?## + #??? | | ????# #?##### = #!##### # # #?"" | | ????# #??#########/##### # ## ### ?? | +----------------------------------------------------+ Best States ------------- Heat Dissipation 25 Energy Generation 14 Energy Capacity 160 Matter Stores 300 Matter Capacity 300 Sight Range 16 Terrain Scan Range 16 Terrain Scan Density 85 Evasion (%) 40 Recoil Reduction 2 Item Schematics ----------------- None Robot Schematics ------------------ None Fabricated ------------ Nothing Alien Tech Used ----------------- None Achievements -------------- None Challenges ------------ None Game ------ Seed NeutrinoDimensionalCleaver Manual? 0 Play Time 00:11:51 Cumulative 23.6 hours Start 2024.06.04 @ 12:32:21 End 2024.06.04 @ 12:42:44 Sessions 1 Manual Loads 0 Difficulty Rogue Special Mode None Game No. 41 Rogue 41 Adventurer 0 Explorer 0 Win Type - Total 0 Types 0/0/0/0/0/0/0/0/0 Lore% 21 Gallery% 25 Achievement% 17 Wizard Run 0 Options --------- Layout 1 ASCII 0 Keyboard 0 Movement Mouse Keybinds 0 Fullscreen 1 Font 16/Terminus Map View 50x40 Zoom Use 0% Tactical HUD 1 Map Filters NONE Filters NONE Steam SD RUN: 1c242967-2e76-46c1-8885-c314000cb08e